Cogmind - Beta 12 *** ADVENTURER MODE // 2023.09.11 @ 18:14:21 Player: Trantor Result: Destroyed by S-27 Virus with Autogun Performance ------------- Evolutions (5) 2500 Regions Visited (14) 2800 Robots Destroyed (39) 195 Value Destroyed (1213) 1213 Prototype IDs (14) 280 Alien Tech Used (0) 0 Bonus (1084) 1084 TOTAL SCORE: 8072 Bonus ------- Follower Combat Kills 84 Met Warlord at Base 500 MAIN.C Attacked Warlord 500 Cogmind --------- Core Integrity 0/1000 Matter 300/300 Energy 12/100 System Corruption 5% Temperature Cool (0) Movement Core (50) Location -4/Proximity Caves Parts ------- > --- POWER (2) -------- (None) > --- PROPULSION (7) --- (None) > --- UTILITY (6) ------ Makeshift Hacking Suite > --- WEAPON (2) ------- (None) > --- INVENTORY (5) ---- Advanced ECM Suite Advanced Shield Generator Vortex Shotgun (50) Improved Proton Missile Launcher Heavy Rocket Launcher Peak State ------------ > --- POWER ------------ Micro Nuclear Core Micro Nuclear Core > --- PROPULSION ------- Improved Gravmag System Improved Gravmag System Improved Gravmag System Improved Gravmag System Improved Flight Unit Improved Flight Unit > --- UTILITY ---------- Improved Heat Sink Trap Scanner Experimental Sensor Array Hacking Suite Makeshift System Shield > --- WEAPON ----------- Makeshift Shrapnel Gun Spear > --- INVENTORY -------- Improved Flight Unit Large Matter Pod Hardened Medium Armor Plating Missile Launcher Remote Datajack [Rating: 65] Favorites ----------- Power Micro Nuclear Core Engine Light Ion Engine Power Core Micro Nuclear Core Propulsion Improved Flight Unit Leg Aluminum Leg Hover Unit Antigrav System Flight Unit Improved Flight Unit Utility Makeshift System Shield Device Improved Heat Sink Storage Medium Storage Unit Processor Improved Signal Interpreter Hackware Makeshift System Shield Protection Light Armor Plating Weapon Light Cannon Energy Gun Backup Laser III Ballistic Gun Heavy Battle Rifle Ballistic Cannon Light Cannon Launcher Rocket Launcher Special Weapon Remote Datajack Slashing Weapon Katana Piercing Weapon Spear Build | -11 -10 -10 -9 -9 -9 -8 -8 -7 -6 -5 -5 -5 -5 -4 ------- Run | Jun Mat Min Mat Min Exi Min Mat Fac Fac Fac Upp Upp War Pro Slots Evolved 10 | . . . 2 . . . 2 2 2 2 . . . . Power 1 | . . . . . . . . 1 . . . . . . Propulsion 5 | . . . 1 . . . 1 1 1 1 . . . . Utility 4 | . . . 1 . . . 1 . 1 1 . . . . Weapon . | . . . . . . . . . . . . . . . Parts Attached 123 | . 7 19 7 1 6 1 13 12 20 11 5 1 14 6 Power 16 | . 1 3 . 1 . . . 5 . 2 1 1 2 . Engine 9 | . 1 2 . 1 . . . 2 . . 1 1 1 . Core 7 | . . 1 . . . . . 3 . 2 . . 1 . Reactor . | . . . . . . . . . . . . . . . Propulsion 29 | . 1 6 4 . 1 . 1 . 12 2 . . 1 1 Treads . | . . . . . . . . . . . . . . . Leg 8 | . 1 6 1 . . . . . . . . . . . Wheel . | . . . . . . . . . . . . . . . Hover 7 | . . . . . . . . . 5 2 . . . . Flight 14 | . . . 3 . 1 . 1 . 7 . . . 1 1 Utility 47 | . 2 2 3 . 3 . 7 6 6 5 3 . 6 4 Device 31 | . 1 2 1 . 2 . 5 5 4 3 3 . 2 3 Storage 3 | . 1 . 1 . . . 1 . . . . . . . Processor 4 | . . . . . . . . . . 2 . . 2 . Hackware 5 | . . . . . 1 . . . 1 . . . 2 1 Protection 4 | . . . 1 . . . 1 1 1 . . . . . Artifact . | . . . . . . . . . . . . . . . Weapon 31 | . 3 8 . . 2 1 5 1 2 2 1 . 5 1 Energy Gun 7 | . . . . . . . 2 . . 1 . . 4 . Energy Cannon . | . . . . . . . . . . . . . . . Ballistic Gun 5 | . . 2 . . 1 . 2 . . . . . . . Ballistic Cannon 6 | . 3 3 . . . . . . . . . . . . Launcher 5 | . . 2 . . . 1 . . 1 . . . . 1 Special Weapon 4 | . . 1 . . 1 . . . 1 1 . . . . Impact Weapon . | . . . . . . . . . . . . . . . Slashing Weapon 2 | . . . . . . . 1 . . . . . 1 . Piercing Weapon 2 | . . . . . . . . 1 . . 1 . . . Special Melee Weapon . | . . . . . . . . . . . . . . . Unidentified Prototypes 6 | . . . 1 . 1 . 2 . . 1 . . 1 . Parts Lost 46 | . . 8 . . . . . . 10 2 . 12 11 3 Power 6 | . . 1 . . . . . . 1 . . 2 2 . Propulsion 14 | . . 2 . . . . . . 2 1 . 5 2 2 Utility 15 | . . 1 . . . . . . 4 1 . 3 6 . Weapon 11 | . . 4 . . . . . . 3 . . 2 1 1 Highest Loss Streak 11 | . . 7 . . . . . . 10 1 . 7 11 3 To Critical Strikes . | . . . . . . . . . . . . . . . Average Slot Usage (%) 85 | . 88 95 99 100 100 100 99 89 91 66 82 55 47 20 Engine 6 | . 14 6 . 8 11 11 9 . . . 4 1 6 . Core 4 | . . 6 11 2 . . . 14 12 6 . . 1 . Leg 12 | . 28 27 18 . . . . . . . . . . . Hover 1 | . . . . . . . . . 1 2 11 6 7 . Flight 12 | . . . 13 33 33 33 36 30 32 19 17 9 . 7 Device 12 | . 3 11 22 22 17 11 17 20 19 12 17 8 3 2 Storage 6 | . 14 14 6 . . . . . . . . . . . Processor 2 | . . . . . . . . . . 6 11 11 8 . Hackware 4 | . . . . . 4 11 9 7 12 5 5 5 9 3 Protection 1 | . . . 4 11 11 11 9 . . . . . . . Energy Gun 1 | . 2 . . . . . . . . 3 . . 7 . Ballistic Gun 5 | . 1 9 11 11 11 11 9 7 5 . . . . . Ballistic Cannon 8 | . 24 17 . . . . . . . . . . . . Special Weapon 2 | . . . 11 11 11 3 . . . 6 5 4 . . Piercing Weapon 1 | . . . . . . . . 5 5 . 4 4 . . Naked Turns 6 | . . . . . . . . . . . . . 6 . Heaviest Build 38 | 13 22 29 22 15 14 13 20 25 26 38 31 17 32 8 Greatest Support 40 | 20 20 20 30 15 15 15 20 20 40 22 22 22 16 8 Greatest Overweight (x) 4 | . 1 1 4 . . . . 1 1 2 1 4 4 1 Average Overweight (x) . | . . . . . . . . . . . . . . . Largest Inventory Capacity 10 | . 10 10 10 5 5 5 5 5 5 5 5 5 5 5 Average Capacity 7 | . 9 10 8 5 5 5 5 5 5 5 5 5 5 5 Most Carried 10 | . 10 10 10 5 5 5 5 5 5 5 5 5 5 5 Average Carried 6 | . 9 9 6 4 4 5 4 4 4 4 4 5 4 4 Final Capacity 10 | 8 10 10 5 5 5 5 5 5 5 5 5 5 5 5 Final Carried 10 | 6 10 8 5 5 5 5 5 5 4 5 5 5 5 5 Class Distribution -------------------- 37% | Mutant 20% | Hacker-Sprinter 20% | Hacker-Mutant 13% | Scavenger-Mutant 6% | Hacker-Scout Dominant Class ---------------- Mutant | -10/Materials Mutant | -10/Mines Scavenger-Mutant | -9/Materials Mutant | -9/Mines Mutant | -9/Exiles Hacker-Mutant | -8/Mines Hacker-Sprinter | -8/Materials Hacker-Sprinter | -7/Factory Hacker-Sprinter | -6/Factory Hacker-Mutant | -5/Factory Hacker-Scout | -5/Upper Caves Hacker-Mutant | -5/Upper Caves Hacker-Mutant | -5/Warlord Hacker-Sprinter | -4/Proximity Caves Resources | -11 -10 -10 -9 -9 -9 -8 -8 -7 -6 -5 -5 -5 -5 -4 ----------- Run | Jun Mat Min Mat Min Exi Min Mat Fac Fac Fac Upp Upp War Pro Matter Collected 2272 | 200 309 670 97 . 62 60 35 24 335 32 53 158 140 97 Remotely . | . . . . . . . . . . . . . . . Salvage Created 1316 | . 437 86 251 . 95 . 38 48 162 32 . 133 . 34 Parts 87 | . 27 . 15 . 5 . 2 6 19 4 . 5 . 4 Haulers Intercepted 4 | . 2 . 2 . . . . . . . . . . . Recyclers Shooed 3 | . . . 1 . . . . . . 2 . . . . Parts Field Recycled . | . . . . . . . . . . . . . . . Retrieved Matter . | . . . . . . . . . . . . . . . Parts Self-Destructed 9 | . . . . . . . . . . . 3 5 . 1 Prevented . | . . . . . . . . . . . . . . . Kills | -11 -10 -10 -9 -9 -9 -8 -8 -7 -6 -5 -5 -5 -5 -4 ------- Run | Jun Mat Min Mat Min Exi Min Mat Fac Fac Fac Upp Upp War Pro Combat Hostiles Destroyed 38 | . 10 14 2 . . . 1 1 2 . . 4 . 4 Melee 7 | . . . . . . . . 1 2 . . 4 . . Guns 6 | . 2 1 2 . . . 1 . . . . . . . Cannons 18 | . 8 10 . . . . . . . . . . . . AOE 7 | . . 3 . . . . . . . . . . . 4 Classes Destroyed 10 | . 3 2 1 . . . 1 1 1 . . 1 . . Hauler 4 | . 2 . 2 . . . . . . . . . . . Recycler 1 | . . . 1 . . . . . . . . . . . Operator 1 | . . . . . . . . . 1 . . . . . Watcher 7 | . 3 . . . . . . 1 2 1 . . . . Swarmer 7 | . . . . . . . . . . . . 3 . 4 Grunt 13 | . 10 . 2 . . . . . . . . 1 . . Sentry 1 | . . . . . . . 1 . . . . . . . Demolisher 2 | . . 2 . . . . . . . . . . . . Programmer 3 | . . . . . . . . 1 2 . . . . . Assembled 12 | . . 12 . . . . . . . . . . . . Best Kill Streak 5 | . 4 5 3 . . . 1 1 2 1 . 2 . 4 Combat Bots Only 5 | . 4 5 2 . . . 1 1 1 . . 2 . 4 Max Kills in Single Turn 2 | . 2 2 1 . . . 1 1 1 1 . 1 . 2 Gunslinging . | . . . . . . . . . . . . . . . Exploded 2 | . . 2 . . . . . . . . . . . 2 Melee 1 | . . . . . . . . 1 1 . . 1 . . Uniques/NPCs Destroyed . | . . . . . . . . . . . . . . . Combat | -11 -10 -10 -9 -9 -9 -8 -8 -7 -6 -5 -5 -5 -5 -4 -------- Run | Jun Mat Min Mat Min Exi Min Mat Fac Fac Fac Upp Upp War Pro Damage Taken 4758 | . 303 968 162 46 . 18 113 69 880 391 28 713 834 233 Core 1490 | . 64 180 15 8 . . 36 9 175 39 . 363 494 107 Absorbed by Shields 210 | . . . . . . . . . . 128 10 19 41 12 Regen/Repaired (Parts) 37 | . . . . . . . . 37 . . . . . . Core Remaining (%) 77 | 100 . 2 . . . 94 93 98 79 . . . . . Volleys Fired 194 | . 32 38 17 . 64 . 3 8 7 20 1 . 2 2 Largest 2 | . 2 2 2 . 1 . 1 1 1 1 1 . 2 1 Hottest 100 | . 85 92 53 . 20 . 24 24 36 81 20 . 100 39 Shots Fired 261 | . 64 70 18 . 64 . 3 8 7 20 1 . 4 2 Gun 85 | . 21 12 17 . . . 3 8 2 18 . . 4 . Cannon 97 | . 43 54 . . . . . . . . . . . . Launcher 10 | . . 4 . . . . . . 4 . . . . 2 Special 69 | . . . 1 . 64 . . . 1 2 1 . . . Kinetic 148 | . 52 66 17 . . . 3 8 2 . . . . . Thermal 97 | . 12 . 1 . 60 . . . . 20 1 . 3 . Explosive 10 | . . 4 . . . . . . 4 . . . . 2 Electromagnetic . | . . . . . . . . . . . . . . . Entropic 1 | . . . . . . . . . . . . . 1 . Robot Hit Streak 26 | . 10 4 4 . 26 . 4 9 . 10 7 . . . Robot Miss Streak 3 | . 2 3 2 . 1 . 1 2 . 1 . . . . Penetration Max 1 | . . 1 . . . . . . . . . . . . Secondary Targets . | . . . . . . . . . . . . . . . Shots Hit Robots 193 | . 45 34 11 . 59 . 3 9 8 13 1 8 . 2 Core Hits 96 | . 23 24 6 . 21 . 2 5 3 2 1 4 . 5 Critical Kills 4 | . . 4 . . . . . . . . . . . . Critical Parts Destroyed 5 | . . 3 . . . . . . . 2 . . . . Critical Strikes 19 | . 6 7 . . . . . 1 3 2 . . . . Burn 2 | . 2 . . . . . . . . . . . . . Destroy 9 | . . 7 . . . . . . . 2 . . . . Blast 4 | . 4 . . . . . . . . . . . . . Impale 4 | . . . . . . . . 1 3 . . . . . Melee Attacks 114 | . . . . . . . 5 4 73 . 15 13 . 4 Impact . | . . . . . . . . . . . . . . . Slashing 12 | . . . . . . . 5 3 . . . . . 4 Piercing 102 | . . . . . . . . 1 73 . 15 13 . . Sneak Attacks . | . . . . . . . . . . . . . . . Combat Hostiles . | . . . . . . . . . . . . . . . Follow-up Attacks . | . . . . . . . . . . . . . . . Damage Inflicted 3670 | . 720 855 299 . 171 . 57 232 299 319 17 266 1 434 Guns 1162 | . 206 87 296 . . . 57 197 . 319 . . . . Cannons 1065 | . 514 551 . . . . . . . . . . . . Explosions 594 | . . 217 . . . . . . . . . . . 377 Melee 657 | . . . . . . . . 35 299 . . 266 . 57 Ramming 1 | . . . . . . . . . . . . . 1 . Kinetic 1762 | . 574 638 296 . . . 57 197 . . . . . . Thermal 656 | . 146 . 3 . 171 . . . . 319 17 . . . Explosive 594 | . . 217 . . . . . . . . . . . 377 Electromagnetic . | . . . . . . . . . . . . . . . Impact . | . . . . . . . . . . . . . . . Slashing 57 | . . . . . . . . . . . . . . 57 Piercing 600 | . . . . . . . . 35 299 . . 266 . . Highest Corruption 16 | . . 9 . . . . . . 16 . . . 5 5 Average Corruption 8 | . . 9 . . . . . . 8 . . . 5 5 Corruption Purged . | . . . . . . . . . . . . . . . Corruption Blocked . | . . . . . . . . . . . . . . . Effects 65 | . . 56 . . . . . . 5 . . . . 4 Message Errors 18 | . . 17 . . . . . . . . . . . 1 Matter Fused 13 | . . 10 . . . . . . 2 . . . . 1 Heat Flow Errors 3 | . . 2 . . . . . . . . . . . 1 Energy Discharges 13 | . . 11 . . . . . . 1 . . . . 1 Data Loss (minor) 8 | . . 7 . . . . . . 1 . . . . . Data Loss (major) 4 | . . 4 . . . . . . . . . . . . Misfires 5 | . . 5 . . . . . . . . . . . . Alerts 1 | . . . . . . . . . 1 . . . . . Overload Shots . | . . . . . . . . . . . . . . . Overflow Damage 185 | . . 32 . . . . . . 132 . . 11 . 10 Projectiles 32 | . . 32 . . . . . . . . . . . . Explosions 10 | . . . . . . . . . . . . . . 10 Melee 143 | . . . . . . . . . 132 . . 11 . . Knockbacks 20 | . 9 11 . . . . . . . . . . . . Impact . | . . . . . . . . . . . . . . . Kinetic 17 | . 7 10 . . . . . . . . . . . . Secondary 3 | . 2 1 . . . . . . . . . . . . Self-Inflicted Damage 122 | . . 31 . . . . . . 90 . . . . 1 Shots 5 | . . 1 . . . . . . 3 . . . . 1 Rammed 2 | . . . 1 . . . . . . . . . 1 . Targets Rammed 2 | . . . 1 . . . . . . . . . 1 . Kicked . | . . . . . . . . . . . . . . . Crushed . | . . . . . . . . . . . . . . . Highest Temperature 346 | . 180 245 . . . . 12 . 12 346 . . 9 208 Average Temperature 64 | . 61 40 . . . . 7 . 5 126 . . 6 98 Received Heat Transfer 870 | . 219 135 87 24 . . 72 6 6 86 6 90 102 37 Effects 1 | . . . . . . . . . . 1 . . . . Shutdowns 1 | . . . . . . . . . . 1 . . . . Siege Activations . | . . . . . . . . . . . . . . . Robots Corrupted . | . . . . . . . . . . . . . . . Combat Hostiles . | . . . . . . . . . . . . . . . Parts Fried . | . . . . . . . . . . . . . . . Impact Corruptions . | . . . . . . . . . . . . . . . Robots Melted . | . . . . . . . . . . . . . . . Combat Hostiles . | . . . . . . . . . . . . . . . Parts Melted 1 | . 1 . . . . . . . . . . . . . Heat Transferred 2473 | . 555 . 25 . 1375 . . . . 481 37 . . . Parts Sabotaged . | . . . . . . . . . . . . . . . Parts Stolen . | . . . . . . . . . . . . . . . Parts Stripped . | . . . . . . . . . . . . . . . Power Chain Reactions . | . . . . . . . . . . . . . . . Missiles Intercepted . | . . . . . . . . . . . . . . . Alert | -11 -10 -10 -9 -9 -9 -8 -8 -7 -6 -5 -5 -5 -5 -4 ------- Run | Jun Mat Min Mat Min Exi Min Mat Fac Fac Fac Upp Upp War Pro Peak Influence 263 | . 195 109 263 131 . 71 137 159 226 98 . . . . Initial 86 | . . . . 86 . . 23 53 22 61 . . . . Average 51 | . 52 11 51 113 . 43 53 100 101 87 . . . . Maximum Alert Level 1 | . . . 1 . . . . . 1 . . . . . Low Security (%) 98 | . 100 100 95 100 . 100 100 100 92 100 . . . . Level 1 1 | . . . 4 . . . . . 7 . . . . . Level 2 . | . . . . . . . . . . . . . . . Level 3 . | . . . . . . . . . . . . . . . Level 4 . | . . . . . . . . . . . . . . . Level 5 . | . . . . . . . . . . . . . . . High Security . | . . . . . . . . . . . . . . . Max Security . | . . . . . . . . . . . . . . . Squads Dispatched 10 | . 2 . 1 . . . . 3 2 1 . 1 . . Investigation 3 | . 2 . . . . . . 1 . . . . . . Extermination 4 | . . . . . . . . 1 2 1 . . . . Reinforcement 2 | . . . 1 . . . . 1 . . . . . . Assault 1 | . . . . . . . . . . . . 1 . . Garrison . | . . . . . . . . . . . . . . . Intercept . | . . . . . . . . . . . . . . . Searches Triggered . | . . . . . . . . . . . . . . . Construction Impeded . | . . . . . . . . . . . . . . . Haulers Reinforced . | . . . . . . . . . . . . . . . Active Scanning Responses . | . . . . . . . . . . . . . . . Cargo Convoy Interrupts . | . . . . . . . . . . . . . . . Stealth | -11 -10 -10 -9 -9 -9 -8 -8 -7 -6 -5 -5 -5 -5 -4 --------- Run | Jun Mat Min Mat Min Exi Min Mat Fac Fac Fac Upp Upp War Pro Distress Signals 5 | . 1 . . . . . 2 . 1 1 . . . . Communications Jammed . | . . . . . . . . . . . . . . . Distress Signals . | . . . . . . . . . . . . . . . Times Spotted 157 | . 15 23 20 3 . 4 13 8 15 5 1 22 16 12 Peak Tracking Total 14 | . 4 7 14 4 . 4 11 5 5 3 1 10 11 8 Tactical Retreats 33 | . . 9 2 1 . . 2 1 5 . . 8 1 4 Traps | -11 -10 -10 -9 -9 -9 -8 -8 -7 -6 -5 -5 -5 -5 -4 ------- Run | Jun Mat Min Mat Min Exi Min Mat Fac Fac Fac Upp Upp War Pro Traps Triggered 2 | . 2 . . . . . . . . . . . . . Indirectly . | . . . . . . . . . . . . . . . Trap Hack Attempts . | . . . . . . . . . . . . . . . Triggered . | . . . . . . . . . . . . . . . Disarmed . | . . . . . . . . . . . . . . . Reprogrammed . | . . . . . . . . . . . . . . . Reused . | . . . . . . . . . . . . . . . Traps Extracted . | . . . . . . . . . . . . . . . Installed . | . . . . . . . . . . . . . . . Triggered 12 | . . . . . . . . . . . 1 . 11 . Machines | -11 -10 -10 -9 -9 -9 -8 -8 -7 -6 -5 -5 -5 -5 -4 ---------- Run | Jun Mat Min Mat Min Exi Min Mat Fac Fac Fac Upp Upp War Pro Machines Disabled 1 | . 1 . . . . . . . . . . . . . Max in Single Turn 1 | . 1 . . . . . . . . . . . . . Garrison Access 1 | . . . . . . . . . 1 . . . . . Machines Repaired . | . . . . . . . . . . . . . . . Machines Sabotaged . | . . . . . . . . . . . . . . . Overloaded Fab Kills . | . . . . . . . . . . . . . . . Hacking | -11 -10 -10 -9 -9 -9 -8 -8 -7 -6 -5 -5 -5 -5 -4 --------- Run | Jun Mat Min Mat Min Exi Min Mat Fac Fac Fac Upp Upp War Pro Machines Accessed 47 | . 10 . 5 . 4 . 3 8 10 1 . . 6 . Terminals 24 | . 8 . 5 . . . 1 4 5 1 . . . . Fabricators 3 | . . . . . . . . 2 1 . . . . . Repair Stations 3 | . . . . . . . 1 1 1 . . . . . Recycling Units 4 | . 2 . . . . . . 1 1 . . . . . Scanalyzers 2 | . . . . . . . 1 . 1 . . . . . Garrison Access 1 | . . . . . . . . . 1 . . . . . Total Hacks 185 | . 26 . 14 . 49 . 24 24 32 2 . . 14 . Successful 141 | . 17 . 6 . 49 . 19 12 23 1 . . 14 . Failed 43 | . 8 . 8 . . . 5 12 9 1 . . . . Catastrophic 3 | . . . . . . . 1 1 1 . . . . . Database Lockouts 1 | . 1 . . . . . . . . . . . . . Manual 62 | . 19 . 14 . 1 . 5 7 15 1 . . . . Terminals 84 | . 23 . 14 . . . 7 14 24 2 . . . . Fabricators 5 | . . . . . . . . 3 2 . . . . . Repair Stations 9 | . . . . . . . 2 6 1 . . . . . Recycling Units 6 | . 3 . . . . . . 1 2 . . . . . Scanalyzers 17 | . . . . . . . 15 . 2 . . . . . Garrison Access 1 | . . . . . . . . . 1 . . . . . Terminal Hacks 87 | . 8 . 1 . 49 . 3 3 9 . . . 14 . Record 62 | . . . . . 49 . . . . . . . 13 . Part Schematic 3 | . . . . . . . . 2 1 . . . . . Robot Analysis 4 | . 2 . . . . . 1 . 1 . . . . . Prototype ID Bank 4 | . 1 . . . . . . . 3 . . . . . Open Door 1 | . . . . . . . . . . . . . 1 . Open DSF 1 | . . . . . . . . 1 . . . . . . Level Access Points 1 | . . . . . . . . . 1 . . . . . Branch Access Points 2 | . 1 . 1 . . . . . . . . . . . Unreport Threat 4 | . 2 . . . . . 2 . . . . . . . Locate Traps 1 | . 1 . . . . . . . . . . . . . Reprogram Traps 1 | . 1 . . . . . . . . . . . . . Transport Status 1 | . . . . . . . . . 1 . . . . . Hauler Manifests 1 | . . . . . . . . . 1 . . . . . Registered Prototypes 1 | . . . . . . . . . 1 . . . . . Fabricator Hacks 4 | . . . . . . . . 2 2 . . . . . Network Status 1 | . . . . . . . . . 1 . . . . . Load Schematic 1 | . . . . . . . . 1 . . . . . . Build 2 | . . . . . . . . 1 1 . . . . . Repair Station Hacks 5 | . . . . . . . 1 4 . . . . . . Scan Component 3 | . . . . . . . 1 2 . . . . . . Repair 2 | . . . . . . . . 2 . . . . . . Recycling Unit Hacks 6 | . 3 . . . . . . 1 2 . . . . . Process 1 | . . . . . . . . . 1 . . . . . Report Inventory 3 | . 2 . . . . . . 1 . . . . . . Retrieve Matter 1 | . . . . . . . . . 1 . . . . . Retrieve Components 1 | . 1 . . . . . . . . . . . . . Scanalyzer 16 | . . . . . . . 14 . 2 . . . . . Insert Component 7 | . . . . . . . 6 . 1 . . . . . Analyze 9 | . . . . . . . 8 . 1 . . . . . Garrison Access Hacks 1 | . . . . . . . . . 1 . . . . . Seal Access 1 | . . . . . . . . . 1 . . . . . Unauthorized Hacks 22 | . 6 . 5 . . . 1 2 7 1 . . . . Terminals 22 | . 6 . 5 . . . 1 2 7 1 . . . . Assimilate 3 | . . . . . . . . . 3 . . . . . Botnet 19 | . 6 . 5 . . . 1 2 4 1 . . . . Fabricators . | . . . . . . . . . . . . . . . Repair Stations . | . . . . . . . . . . . . . . . Recycling Units . | . . . . . . . . . . . . . . . Scanalyzers . | . . . . . . . . . . . . . . . Garrison Access . | . . . . . . . . . . . . . . . Data Cores Recovered 1 | . . . . . . . . . 1 . . . . . Used 1 | . . . . . . . . . 1 . . . . . Hacking Detections 28 | . 8 . 5 . . . 2 6 6 1 . . . . Full Trace Events 2 | . 1 . . . . . . 1 . . . . . . Feedback Events . | . . . . . . . . . . . . . . . Feedback Blocked . | . . . . . . . . . . . . . . . Robot Schematics Acquired . | . . . . . . . . . . . . . . . Robots Built . | . . . . . . . . . . . . . . . Authchips . | . . . . . . . . . . . . . . . Time . | . . . . . . . . . . . . . . . Total Robot Build Rating . | . . . . . . . . . . . . . . . Part Schematics Acquired 10 | . . . . . . . 6 2 2 . . . . . Parts Built 1 | . . . . . . . . . 1 . . . . . Authchips . | . . . . . . . . . . . . . . . Time 148 | . . . . . . . . 53 95 . . . . . Total Part Build Rating 5 | . . . . . . . . . 5 . . . . . Parts Repaired 2 | . . . . . . . . 2 . . . . . . Time 152 | . . . . . . . . 152 . . . . . . Parts Recycled . | . . . . . . . . . . . . . . . Recycled Matter 9 | . . . . . . . . . 9 . . . . . Retrieved Matter 9 | . . . . . . . . . 9 . . . . . Retrieved Components 9 | . 9 . . . . . . . . . . . . . Parts Scanalyzed 7 | . . . . . . . 6 . 1 . . . . . Part Schematics Acquired 7 | . . . . . . . 6 . 1 . . . . . Parts Damaged 1 | . . . . . . . . . 1 . . . . . Bothacking | -11 -10 -10 -9 -9 -9 -8 -8 -7 -6 -5 -5 -5 -5 -4 ------------ Run | Jun Mat Min Mat Min Exi Min Mat Fac Fac Fac Upp Upp War Pro Used RIF Installer . | . . . . . . . . . . . . . . . Robots Hacked . | . . . . . . . . . . . . . . . Non-combat . | . . . . . . . . . . . . . . . Combat . | . . . . . . . . . . . . . . . Robot Hacks Applied . | . . . . . . . . . . . . . . . Relay Couplers Released . | . . . . . . . . . . . . . . . Fabnet Peak Effective % . | . . . . . . . . . . . . . . . Robots Rewired 2 | . . . . . 2 . . . . . . . . . Allies Hacked . | . . . . . . . . . . . . . . . Hacks Repelled . | . . . . . . . . . . . . . . . Allies | -11 -10 -10 -9 -9 -9 -8 -8 -7 -6 -5 -5 -5 -5 -4 -------- Run | Jun Mat Min Mat Min Exi Min Mat Fac Fac Fac Upp Upp War Pro Total Allies 7 | . . 4 . . 2 . . . 1 . . . . . Largest Group 4 | . . 4 . . 2 2 1 . 1 . . . . . Highest-Rated Group 71 | . . 71 . . 29 29 21 . 10 . . . . . Highest-Rated Ally 31 | . . 31 . . 21 21 21 . 10 . . . . . Total Orders . | . . . . . . . . . . . . . . . Ally Attacks 34 | . . 26 . . . 5 3 . . . . . . . Total Damage 502 | . . 311 . . . 118 73 . . . . . . . Kills 8 | . . 4 . . . 4 . . . . . . . . Allies Corrupted . | . . . . . . . . . . . . . . . Allies Melted 3 | . . . . . . . . . . . . . 3 . Intel | -11 -10 -10 -9 -9 -9 -8 -8 -7 -6 -5 -5 -5 -5 -4 ------- Run | Jun Mat Min Mat Min Exi Min Mat Fac Fac Fac Upp Upp War Pro Robot Analysis Total 4 | . 2 . . . . . 1 . 1 . . . . . Derelict Logs Recovered 6 | . . 2 . 1 . . . . . . 1 1 . 1 Drone Launches . | . . . . . . . . . . . . . . . Drone Recoveries . | . . . . . . . . . . . . . . . Exploration | -11 -10 -10 -9 -9 -9 -8 -8 -7 -6 -5 -5 -5 -5 -4 ------------- Run | Jun Mat Min Mat Min Exi Min Mat Fac Fac Fac Upp Upp War Pro Turns Passed 7875 | . 1380 1886 321 49 491 303 347 475 755 300 482 297 604 185 Spaces Moved 8594 | 1 728 981 411 136 774 666 574 739 1171 254 696 370 707 386 Core 439 | . . . 1 . . . . . . . . 157 281 . Treads . | . . . . . . . . . . . . . . . Legs 1835 | 1 728 981 125 . . . . . . . . . . . Wheels . | . . . . . . . . . . . . . . . Hover 1351 | . . . . . . . . . 40 59 696 153 403 . Flight 4969 | . . . 285 136 774 666 574 739 1131 195 . 60 23 386 Fastest Speed 23 | 120 120 120 34 34 34 34 31 31 23 29 56 40 35 32 Average Speed 70 | 120 167 171 62 34 34 34 31 32 27 90 61 70 75 35 Slowest Speed 320 | 120 190 190 320 34 34 34 31 101 110 180 116 250 250 115 Overloaded Moves . | . . . . . . . . . . . . . . . Propulsion Burnouts . | . . . . . . . . . . . . . . . Robots Hopped 23 | . . . 4 . 4 2 6 6 1 . . . . . Cave-ins Triggered 4 | . . 1 . . . . . . 3 . . . . . Exploration Rate (%) 54 | 2 99 99 49 29 93 84 40 27 27 6 77 47 70 61 Regions Visited 14 Branch Regions 8 Pre-discovered Areas 4 | . . 1 . 1 1 . . . . . . . . 1 Known Exits Taken 6 | . 1 . 1 . . . . . 1 1 1 1 . . Unknown Exits Taken 8 | 1 . 1 . 1 1 1 1 1 . . . . 1 . Scrap Searched 7 | . . 3 . . . . . . . . 2 . . 2 Spaces Dug 153 | . . . . . . . 5 3 126 . . . . 19 Terrain Destroyed 193 | . . 27 1 . . . 5 3 126 . . . . 31 Melee 70 | . . . . . . . 5 3 62 . . . . . Projectile 17 | . . 16 1 . . . . . . . . . . . AOE 106 | . . 11 . . . . . . 64 . . . . 31 Terrain Rammed . | . . . . . . . . . . . . . . . Walls Destroyed . | . . . . . . . . . . . . . . . Machines Disabled . | . . . . . . . . . . . . . . . Actions | -11 -10 -10 -9 -9 -9 -8 -8 -7 -6 -5 -5 -5 -5 -4 --------- Run | Jun Mat Min Mat Min Exi Min Mat Fac Fac Fac Upp Upp War Pro Total 9991 | . 825 1121 455 138 923 739 724 954 1483 301 735 392 773 428 Wait 851 | . 46 61 10 . 76 75 124 186 193 5 16 9 28 22 Move 8533 | . 727 980 403 135 765 661 562 726 1165 253 695 369 706 386 Hop 21 | . . . 3 . 4 2 5 6 1 . . . . . Pick Up 40 | . 4 9 6 1 3 . 3 3 5 1 . . 3 2 Fast Attach 70 | . 5 5 4 . 1 . 7 8 13 10 3 1 11 2 Attach 25 | . . 6 2 . 1 . 1 . 6 1 2 . 2 4 Detach 29 | . 3 1 . . 1 . . . 4 5 2 . 9 4 Swap 28 | . 2 8 1 1 4 1 5 4 1 . . . 1 . Drop 81 | . 6 13 8 1 4 . 9 9 12 6 1 . 10 2 Fire 194 | . 32 38 17 . 64 . 3 8 7 20 1 . 2 2 Melee 114 | . . . . . . . 5 4 73 . 15 13 . 4 Ram 2 | . . . 1 . . . . . . . . . 1 . Kick . | . . . . . . . . . . . . . . . Crush . | . . . . . . . . . . . . . . . Escape Stasis 3 | . . . . . . . . . 3 . . . . . Rewire . | . . . . . . . . . . . . . . . Trap . | . . . . . . . . . . . . . . . Miscellaneous . | . . . . . . . . . . . . . . . Route ------- -11/Junkyard -10/Materials (discovered 5 exits: *Mat x3 / *Min x2) -10/Mines (discovered 2 exits: *Mat x2) -9/Materials (discovered 4 exits: *Min x2 / *Sto x2) -9/Mines (discovered 2 exits: *Mat / *Exi) -9/Exiles (discovered 2 exits: [*Min x2]) -8/Mines (discovered 2 exits: *Mat x2) -8/Materials -7/Factory -6/Factory (discovered 4 exits: *Fac x4) -5/Factory -5/Upper Caves -5/Upper Caves (discovered 2 exits: *Fac / *War) -5/Warlord -4/Proximity Caves History --------- Turn | Location | Event 1 | -11/Junkyard | Discovered new exit (range 0) 1 | -11/Junkyard | Entered Materials 179 | -10/Materials | Discovered new exit (range 8) 311 | -10/Materials | Build established: Mutant 390 | -10/Materials | Discovered new exit (range 14) 638 | -10/Materials | Discovered new exit (range 10) 756 | -10/Materials | Discovered new exit (range 16) 777 | -10/Materials | Identified exit to Mines 777 | -10/Materials | Central database locked down 1136 | -10/Materials | Discovered new exit (range 16) 1381 | -10/Materials | Entered Mines 1384 | -10/Mines | Received a Mining Laser from a helpful Derelict 1507 | -10/Mines | Assisted by bots powering up and referring to "LRC-V3" 1535 | -10/Mines | Discovered new exit (range 9) 1718 | -10/Mines | Assembled infested the area 1720 | -10/Mines | Learned Materials non-interactive machine intel 1723 | -10/Mines | Assisted by a Guerilla fighting off Assembled 1745 | -10/Mines | Core integrity fell below 50% 1754 | -10/Mines | Crushed by falling debris 1754 | -10/Mines | Core integrity fell below 20% 1803 | -10/Mines | Lost 7 parts (1p1n1u4w) 2031 | -10/Mines | A weapon hastily lodged in a ceiling crevice suddenly fell to the ground 2082 | -10/Mines | Learned location of Storage (-9) 2501 | -10/Mines | Discovered new exit (range 10) 2705 | -10/Mines | Build established: Scavenger-Mutant 3267 | -10/Mines | Entered Materials 3267 | -9/Materials | Evolved 2 slots: Propulsion x1, Utility x1 3268 | -9/Materials | Loaded intel: 36 non-interactive machine locations 3470 | -9/Materials | Discovered new exit (range 12) 3579 | -9/Materials | Identified exit to Mines 3579 | -9/Materials | Identified exit to Storage 3588 | -9/Materials | Entered Mines 3593 | -9/Mines | Found a damaged Exp. Sensor Array with a note attached 3596 | -9/Mines | Found Prototype Device 3602 | -9/Mines | Met a Derelict bent on vengeance 3602 | -9/Mines | Discovered new exit (range 15) 3610 | -9/Mines | Learned location of Zion (-6) 3623 | -9/Mines | Deemed a non-threat by the Exiles lab entrance 3623 | -9/Mines | Discovered new exit (range 5) 3637 | -9/Mines | Entered Exiles 3637 | -9/Exiles | Found Exiles lab destroyed 3645 | -9/Exiles | Discovered new exit (range 14) 3749 | -9/Exiles | Build established: Mutant 3836 | -9/Exiles | Identified Exp. Sensor Array 4014 | -9/Exiles | Discovered new exit (range 11) 4128 | -9/Exiles | Entered Mines 4128 | -8/Mines | Accompanied by 2 allies 4233 | -8/Mines | Build established: Hacker-Mutant 4371 | -8/Mines | Discovered new exit (range 7) 4392 | -8/Mines | Discovered new exit (range 9) 4431 | -8/Mines | Entered Materials 4431 | -8/Materials | Accompanied by 1 ally 4431 | -8/Materials | Evolved 2 slots: Propulsion x1, Utility x1 4725 | -8/Materials | Build established: Hacker-Sprinter 4738 | -8/Materials | Discovered new exit (range 15) 4778 | -8/Materials | Entered Factory 4778 | -7/Factory | Evolved 2 slots: Power x1, Propulsion x1 5117 | -7/Factory | Repaired Exp. Sensor Array 5175 | -7/Factory | Repaired Remote Datajack 5249 | -7/Factory | Discovered new exit (range 13) 5253 | -7/Factory | Entered another Factory area 5253 | -6/Factory | Evolved 2 slots: Propulsion x1, Utility x1 5256 | -6/Factory | Identified exit to Factory 5721 | -6/Factory | Fabricated Enh. Optical Array (x1) 5833 | -6/Factory | Spotted B-75 Beast 5901 | -6/Factory | Crushed by falling debris 5902 | -6/Factory | System corruption reached 10% 5916 | -6/Factory | Crushed by falling debris 5916 | -6/Factory | Crushed by falling debris 5947 | -6/Factory | Lost 10 parts (1p2n4u3w) 6008 | -6/Factory | Entered another Factory area 6008 | -5/Factory | Evolved 2 slots: Propulsion x1, Utility x1 6023 | -5/Factory | Discovered new exit (range 5) 6306 | -5/Factory | Identified exit to Upper Caves 6308 | -5/Factory | Entered Upper Caves 6330 | -5/Upper Caves | Build established: Hacker-Mutant 6512 | -5/Upper Caves | Learned location of 1 exit from Factory 6675 | -5/Upper Caves | Build established: Hacker-Scout 6771 | -5/Upper Caves | Attracted the attention of an 0b10 checkpoint 6786 | -5/Upper Caves | Discovered new exit (range 8) 6790 | -5/Upper Caves | Identified exit to Upper Caves 6790 | -5/Upper Caves | Entered another Upper Caves area 6803 | -5/Upper Caves | Learned Factory stockpile data 6873 | -5/Upper Caves | Discovered new exit (range 11) 6891 | -5/Upper Caves | Attracted the attention of an 0b10 checkpoint 6925 | -5/Upper Caves | Identified exit to Factory 7005 | -5/Upper Caves | Lost 7 parts (1p3n3u) 7063 | -5/Upper Caves | Attracted the attention of an 0b10 outpost 7082 | -5/Upper Caves | Discovered new exit (range 13) 7087 | -5/Upper Caves | Identified exit to Warlord 7087 | -5/Upper Caves | Entered Warlord 7100 | -5/Warlord | Lost 5 parts (1p2n2w) 7193 | -5/Warlord | Visited the Vortex Lab 7197 | -5/Warlord | Found Prototype Energy Gun 7197 | -5/Warlord | Identified Vortex Shotgun 7199 | -5/Warlord | Warlord's base attacked by MAIN.C 7200 | -5/Warlord | Found Vortex Shotgun 7256 | -5/Warlord | Met Warlord 7264 | -5/Warlord | Build established: Hacker-Mutant 7288 | -5/Warlord | Learned Research stockpile data 7289 | -5/Warlord | Learned 4 Armory zone layouts 7289 | -5/Warlord | Learned 4 Research zone layouts 7289 | -5/Warlord | Learned 4 Testing zone layouts 7290 | -5/Warlord | Learned Quarantine security intel 7290 | -5/Warlord | Learned Factory garrison access intel 7290 | -5/Warlord | Learned Armory terminal intel 7540 | -5/Warlord | Spotted Striker 7541 | -5/Warlord | Spotted Executioner 7549 | -5/Warlord | Warlord forces counterattacked 7610 | -5/Warlord | Spotted B-75 Beast 7616 | -5/Warlord | Spotted B-86 Titan 7629 | -5/Warlord | Spotted Striker 7647 | -5/Warlord | Core integrity fell below 50% 7657 | -5/Warlord | Core integrity fell below 20% 7668 | -5/Warlord | Discovered new exit (range 15) 7686 | -5/Warlord | Lost 11 parts (2p2n6u1w) 7691 | -5/Warlord | Entered Proximity Caves 7842 | -4/Proximity Caves | Attracted the attention of an 0b10 base 7876 | -4/Proximity Caves | Destroyed by S-27 Virus with Autogun Last Messages --------------- 07775_ S-27 Virus unfolds itself. 07777_ S-27 Virus destroyed. 07777_ Destroyed VTOL Module. 07778_ The unstable cave ceiling collapses. 07779_ S-27 Virus destroyed. 07782_ Acquired 50 matter. 07783_ The unstable cave ceiling collapses. 07783_ Acquired VTOL Module. 07784_ Acquired 10 matter. 07787_ The unstable cave ceiling collapses. 07825_ Searching scrap... 07825_ Found ECM Suite. 07825_ Found Adv. Actuator Array. 07825_ Found 18 Matter. 07830_ System corrupted: Matter fused (-9). 07831_ Acquired 9 matter. 07853_ VTOL Module destroyed. 07870_ Axe destroyed. 07874_ VTOL Module destroyed. 07876_ System corrupted: Energy discharge (-3). Map ----- +----------------------------------------------------+ | ???????????????????????????????????????????????? | | ???????????????????????????????????????????????? | | ???????????????????????????????????????????????? | | ???????????????????????????????????????????????? | | ???????????????????????????????????????????????? | | ???????????????????????????????????????????????? | | ???????????????????????????????????????????????? | | ???????????????????????????????????????????????? | | ???????????????????????????????????????????????? | | ???????????????????????????????????????????????? | | ???????????#####???????????????????????????????? | | ????######## ######??????????????????????????? | | ##### ## ##?????????????????????????? | | ######????????????????????? | | #????????????????????? | | ## #????????????????????? | | ## ##### #### #????????????????????? | | ### ##???# #??# #????????????????????? | | ## ##????# #??# #????????????????????? | | #########?????## #??# #????????????????????? | | #????????????## ##?# #????????????????????? | | #?????????????## #?# #????????????????????? | | #??????????????# #?# #????????????????????? | | ? ????????????## #?# #????????????????????? | | ?? ???????????## #?# #????????????????????? | | ???## ?????????## #?#@#????????????????????? | | ??????####????????# ###s#????????????????????? | | ??????????????????# ##????????????????????? | | ?????????????# # #??????????????????? | | ?????????????###### #### #?????????????????? | | ??????????????????# ???? # #???????????????? | | ??????????????????# ????# #??????????????? | | ?????????????????? ?????### #??????????????? | | ?????????????????## ?????????###??????????????? | | ??????????????????## ??????????????????????????? | | ???????????????????# ??????????????????????????? | | ???????????????????##??????????????????????????? | | ???????????????????????????????????????????????? | | ???????????????????????????????????????????????? | | ???????????????????????????????????????????????? | | ???????????????????????????????????????????????? | | ???????????????????????????????????????????????? | | ???????????????????????????????????????????????? | | ???????????????????????????????????????????????? | | ???????????????????????????????????????????????? | | ???????????????????????????????????????????????? | | ???????????????????????????????????????????????? | | ???????????????????????????????????????????????? | | ???????????????????????????????????????????????? | | ???????????????????????????????????????????????? | +----------------------------------------------------+ Best States ------------- Heat Dissipation 51 Energy Generation 29 Energy Capacity 365 Matter Stores 300 Matter Capacity 300 Sight Range 16 Robot Scan Range 20 Terrain Scan Density 10 Armor Coverage 225 Resistance: KI 40 Resistance: TH 20 Resistance: EX 20 Resistance: EM 20 Resistance: I 20 Resistance: S 20 Resistance: P 20 Evasion (%) 65 Targeting Accuracy 12 Melee Accuracy 8 Offensive Hacking 32 Defensive Hacking 11 Item Schematics ----------------- Remote Datajack | -8/Materials | Scanalyzed Hacking Suite | -8/Materials | Scanalyzed Rocket Launcher | -8/Materials | Scanalyzed Imp. Heat Sink | -8/Materials | Scanalyzed Lrg. Matter Pod | -8/Materials | Scanalyzed Trap Scanner | -8/Materials | Scanalyzed Gravmag System | -7/Factory | Hacked Gyrokinetic Inverter | -7/Factory | Hacked Imp. Antigrav System | -6/Factory | Hacked Adv. ECM Suite | -6/Factory | Scanalyzed Robot Schematics ------------------ None Fabricated ------------ Enh. Optical Array | x1 | -6/Factory | Preloaded Alien Tech Used ----------------- None Achievements -------------- None Challenges ------------ None Game ------ Seed CentriumHybridTriangulator Manual? 0 Play Time 02:31:53 Cumulative 180.8 hours Start 2023.09.09 @ 10:41:23 End 2023.09.11 @ 18:14:21 Sessions 9 Manual Loads 0 Difficulty Adventurer Special Mode None Game No. 104 Rogue 66 Adventurer 38 Explorer 0 Win Type - Total 1 Types 1/0/0/0/0/0/0/0/0 Lore% 57 Gallery% 54 Achievement% 54 Wizard Run 0 Options --------- ASCII 0 Keyboard 1 Movement Vi Keybinds 1 Fullscreen 2 Font 18/X11Bold Map View 76x50 Tactical HUD 1 Map Filters NONE Filters NONE Steam 1 RUN: bb9e3ad4-ceb6-41ef-919b-8216888993c4